bitfinex/quotes_SOLUSD_20251116
["timestamp","ask_amount","ask_price","bid_price","bid_amount"]
[1763259540145,12.11848309,139.89,139.85,4.29978246]
[1763259540349,0.67,139.88,139.85,4.29978246]
[1763259540857,7.14949596,139.87,139.85,4.29978246]
[1763259541444,0.67,139.86,139.85,4.29978246]
[1763259542951,25.02323586,139.87,139.85,4.29978246]
[1763259543159,0.67,139.87,139.86,4.29978246]
[1763259544964,7.81949596,139.87,139.85,4.29978246]
[1763259545349,0.67,139.86,139.85,4.29978246]
[1763259546274,7.82000715,139.86,139.79,4.29978246]
[1763259546575,0.67,139.85,139.82,4.29978246]
[1763259546747,0.67,139.85,139.83,4.29978246]
[1763259546943,4.29978246,139.84,139.8,4.29978246]
[1763259547167,4.29978246,139.84,139.75,0.4]
[1763259547168,26.95098246,139.83,139.78,4.29978246]
[1763259547553,0.67,139.82,139.79,4.29978246]
[1763259547902,26.95098246,139.8,139.75,4.29978246]
[1763259548080,9.78882769,139.79,139.7,7.15819613]
[1763259548279,25.03934753,139.78,139.75,4.29978246]
[1763259548447,0.67,139.79,139.77,4.29978246]
[1763259548785,0.67,139.81,139.78,4.29978246]
[1763259549081,0.67,139.81,139.79,4.29978246]
[1763259550356,7.15307582,139.8,139.79,4.29978246]
[1763259550558,0.67,139.83,139.79,4.29978246]
[1763259550767,0.67,139.83,139.81,4.29978246]
[1763259551894,0.67,139.83,139.8,4.29978246]
[1763259552068,36.73981015,139.82,139.78,4.29978246]
[1763259552259,25.03397467,139.81,139.78,4.29978246]
[1763259552459,25.70397467,139.81,139.78,4.29978246]
[1763259552780,25.70397467,139.81,139.74,7.55612987]
[1763259552781,0.67,139.8,139.74,7.55612987]
[1763259553083,7.15256419,139.81,139.79,4.29978246]
[1763259553280,7.15256419,139.81,139.75,0.4]
[1763259553486,7.15256419,139.81,139.8,4.29978246]
[1763259554386,0.67,139.82,139.8,4.29978246]
[1763259554689,7.82217646,139.82,139.81,4.29978246]
[1763259554897,25.70230805,139.82,139.8,4.29978246]
[1763259555080,0.67,139.82,139.8,4.29978246]
[1763259555280,23.3112,139.85,139.81,4.29978246]
[1763259555487,25.68694414,139.85,139.82,4.29978246]
[1763259555692,0.66,139.84,139.79,4.29978246]
[1763259555996,10.44882769,139.84,139.8,4.29978246]
[1763259556194,9.78882769,139.83,139.8,4.29978246]
[1763259556499,7.15205263,139.82,139.8,4.29978246]
[1763259556670,7.81205263,139.82,139.8,4.29978246]
[1763259556864,0.66,139.81,139.8,4.29978246]
[1763259557586,0.66,139.81,139.75,0.4]
[1763259557759,0.66,139.81,139.79,4.29978246]
[1763259557960,0.66,139.81,139.8,4.29978246]
[1763259558370,7.81256419,139.81,139.8,4.29978246]
[1763259558565,7.15221039,139.82,139.8,4.29978246]
[1763259558772,7.81221039,139.82,139.81,4.29978246]
[1763259562195,7.81221039,139.82,139.77,7.15448951]
[1763259562497,0.66,139.81,139.8,4.29978246]
[1763259563690,7.81256419,139.81,139.8,4.29978246]
[1763259563889,0.66,139.81,139.8,4.29978246]
[1763259564980,0.66,139.81,139.8,6.85407064]
[1763259565188,7.15205263,139.82,139.8,6.85407064]
[1763259565391,7.15205263,139.82,139.81,6.85407064]
[1763259565593,7.81205263,139.82,139.81,6.85407064]
[1763259566971,7.81205263,139.82,139.81,2.76799388]
[1763259567911,7.81205263,139.82,139.8,2.76799388]
[1763259568304,0.66,139.81,139.8,2.76799388]
[1763259568601,7.15060021,139.85,139.8,2.76799388]
[1763259568786,0.66,139.84,139.83,2.76799388]
[1763259569574,7.81102974,139.84,139.81,2.76799388]
[1763259569999,0.66,139.83,139.81,2.76799388]
[1763259571005,0.66,139.83,139.81,6.85331217]
[1763259571410,7.15205263,139.82,139.81,6.85331217]
[1763259571779,7.81205263,139.82,139.81,6.85331217]
[1763259574082,32.54549639,139.82,139.74,0.4]
[1763259574277,0.66,139.81,139.78,6.85331217]
[1763259575206,7.15307582,139.8,139.78,6.85331217]
[1763259576075,7.81307582,139.8,139.78,6.85331217]
[1763259576280,7.81307582,139.8,139.79,6.85331217]
[1763259577878,7.81307582,139.8,139.78,6.85331217]
[1763259578096,0.66,139.79,139.75,7.55540808]
[1763259578297,0.66,139.79,139.78,6.85331217]
[1763259579087,7.81358752,139.79,139.78,6.85331217]
[1763259582942,7.15358752,139.79,139.78,6.85331217]
[1763259583110,7.15358752,139.79,139.72,22.6512]
[1763259583111,0.66,139.79,139.71,0.4]
[1763259583285,7.15461114,139.77,139.74,6.85331217]
[1763259583609,7.15461114,139.77,139.75,6.85331217]
[1763259583788,0.67,139.76,139.75,6.85331217]
[1763259584597,7.82512306,139.76,139.75,6.85331217]
[1763259586609,7.82512306,139.76,139.74,6.85331217]
[1763259586809,0.67,139.75,139.69,0.1]
[1763259586999,0.67,139.75,139.72,6.85331217]
[1763259588115,0.67,139.75,139.69,0.1]
[1763259588116,7.15512306,139.76,139.74,6.85331217]
[1763259588313,7.15479601,139.77,139.75,6.85331217]
[1763259588503,0.67,139.77,139.76,6.85331217]
[1763259589011,0.67,139.77,139.71,0.4]
[1763259589189,0.67,139.77,139.75,6.85331217]
[1763259590429,7.15512306,139.76,139.75,6.85331217]
[1763259591019,7.82512306,139.76,139.75,2.77006753]
[1763259594326,0.67,139.76,139.75,2.77006753]
[1763259594631,0.67,139.8,139.75,28.21472035]
[1763259594917,25.02502502,139.86,139.79,5.54013506]
[1763259595119,0.67,139.85,139.83,2.77006753]
[1763259595617,7.15102974,139.84,139.82,2.77006753]
[1763259596097,0.67,139.83,139.82,2.77006753]
[1763259596909,7.82154115,139.83,139.82,2.77006753]
[1763259598196,9.78882769,139.86,139.82,2.77006753]
[1763259598498,0.67,139.83,139.82,2.77006753]
[1763259599508,0.67,139.85,139.82,2.77006753]
[1763259599705,30.4707722,139.87,139.84,2.77006753]
[1763259599906,30.4707722,139.87,139.82,0.4]
[1763259599907,23.3212,139.87,139.86,2.77006753]
[1763259600108,7.81877878,139.89,139.86,2.77006753]
[1763259600307,2.77006753,139.91,139.88,2.77006753]
[1763259600308,0.67,139.91,139.88,2.77006753]
[1763259600523,7.1469411,139.92,139.9,2.77006753]
[1763259600826,7.14660924,139.93,139.91,2.77006753]
[1763259601008,7.14660924,139.93,139.87,0.4]
[1763259601214,0.67,139.92,139.87,0.4]
[1763259601405,0.67,139.92,139.9,2.77006753]
[1763259601919,3.44006753,139.92,139.88,2.77006753]
[1763259602106,0.67,139.92,139.88,2.77006753]
[1763259602428,7.81745193,139.91,139.88,2.77006753]
[1763259602723,7.14643035,139.93,139.9,2.77006753]
[1763259602957,7.14643035,139.93,139.92,2.77006753]
[1763259603421,7.81489854,139.96,139.92,2.77006753]
[1763259603737,7.81489854,139.96,139.9,0.4]
[1763259603738,7.81489854,139.96,139.94,2.77006753]
[1763259604025,7.14489854,139.96,139.95,2.77006753]
[1763259604402,22.6512,139.96,139.95,2.77006753]
[1763259604828,22.6512,139.96,139.95,6.84015973]
[1763259605028,23.3212,139.96,139.89,0.4]
[1763259605247,23.3212,139.96,139.85,30.19863267]
[1763259605248,0.67,139.95,139.85,30.19863267]
[1763259605530,0.67,139.95,139.92,6.84015973]
[1763259606311,0.67,139.95,139.84,38.18720709]
[1763259606312,31.85266597,139.93,139.88,6.84015973]
[1763259606509,6.84015973,139.92,139.88,6.84015973]
[1763259606705,6.84015973,139.92,139.82,8.04444242]
[1763259606706,6.84015973,139.9,139.82,8.04444242]
[1763259606911,9.78882769,139.91,139.82,8.04444242]
[1763259606912,6.84015973,139.89,139.85,6.84015973]
[1763259607138,7.51015973,139.9,139.85,6.84015973]
[1763259607433,6.84015973,139.89,139.85,6.84015973]
[1763259607599,7.51015973,139.89,139.85,6.84015973]
[1763259607805,7.51015973,139.88,139.83,6.84015973]
[1763259608024,0.67,139.88,139.84,6.84015973]
[1763259608234,7.81993393,139.87,139.85,6.84015973]
[1763259608630,0.67,139.86,139.84,6.84015973]
[1763259609953,7.14993393,139.87,139.85,6.84015973]
[1763259610155,7.14842881,139.9,139.86,7.24015973]
[1763259610355,7.14842881,139.9,139.89,6.84015973]
[1763259610658,7.81703172,139.92,139.89,6.84015973]
[1763259610853,7.81703172,139.92,139.9,6.84015973]
[1763259611659,0.67,139.91,139.89,6.84015973]
[1763259612246,7.14796283,139.9,139.89,6.84015973]
[1763259613474,7.14796283,139.9,139.8,21.4876625]
[1763259613475,25.7278699,139.9,139.87,6.84015973]
[1763259613764,25.0178699,139.9,139.87,6.84015973]
[1763259613941,0.71,139.89,139.88,6.84015973]
[1763259614267,7.8584738,139.89,139.88,6.84015973]
[1763259614564,7.14699243,139.92,139.88,7.24015973]
[1763259614860,7.14699243,139.92,139.91,6.84015973]
[1763259615057,7.14699243,139.92,139.88,0.4]
[1763259615366,25.7243452,139.92,139.88,0.4]
[1763259615539,25.7243452,139.92,139.9,6.84015973]
[1763259615738,7.14660709,139.93,139.91,6.84015973]
[1763259615938,7.14608553,139.94,139.92,6.84015973]
[1763259616137,7.85534975,139.96,139.93,6.84015973]
[1763259616666,0.71,139.95,139.93,6.84015973]
[1763259617365,25.0075961,139.96,139.93,6.84015973]
[1763259617935,0.71,139.95,139.91,6.84015973]
[1763259618153,0.71,139.95,139.92,6.84015973]
[1763259618363,0.71,139.95,139.93,6.84015973]
[1763259618563,7.85553631,139.95,139.93,6.84015973]
[1763259619358,7.14553631,139.95,139.94,6.84015973]
[1763259619740,7.14553631,139.95,139.93,6.84015973]
[1763259619941,7.85553631,139.95,139.93,6.84015973]
[1763259623371,7.85492325,139.96,139.93,6.84015973]
[1763259623552,7.85492325,139.96,139.94,6.84015973]
[1763259623866,7.14492325,139.96,139.94,6.84015973]
[1763259624076,7.14455022,139.97,139.95,6.84015973]
[1763259624247,7.14455022,139.97,139.96,6.84015973]
[1763259624449,7.85409658,139.98,139.95,6.84015973]
[1763259624769,0.71,139.98,139.96,6.84015973]
[1763259625085,7.14489854,139.96,139.95,6.84015973]
[1763259625373,7.85455771,139.97,139.95,6.84015973]
[1763259625560,39.28018742,140.0,139.96,6.84015973]
[1763259625561,10.49882769,140.0,139.96,6.84015973]
[1763259625768,7.85345497,139.99,139.97,6.84015973]
[1763259626471,0.71,139.98,139.96,6.84015973]
[1763259626847,0.71,139.98,139.96,4.29666386]
[1763259627245,7.14425115,139.98,139.96,4.29666386]
[1763259627450,7.14425115,139.98,139.94,0.4]
[1763259627649,7.14425115,139.98,139.96,4.29666386]
[1763259628078,7.85425115,139.98,139.96,4.29666386]
[1763259628247,0.71,139.97,139.95,4.29666386]
[1763259628854,0.71,139.97,139.9,0.4]
[1763259629155,5.00666386,139.97,139.9,0.4]
[1763259629369,25.00714489,139.96,139.93,4.29666386]
[1763259629653,25.71714489,139.96,139.93,4.29666386]
[1763259630051,25.00714489,139.96,139.93,4.29666386]
[1763259630252,0.71,139.95,139.93,4.29666386]
[1763259630487,0.71,139.95,139.85,7.15051841]
[1763259630488,5.00666386,139.95,139.85,7.15051841]
[1763259630658,4.29666386,139.93,139.89,4.29666386]
[1763259631054,0.71,139.92,139.89,4.29666386]
[1763259631480,0.71,139.92,139.79,14.34110627]
[1763259631481,7.14745193,139.91,139.79,14.34110627]
[1763259631666,4.29666386,139.9,139.83,0.4]
[1763259631873,0.71,139.9,139.86,4.29666386]
[1763259632079,0.71,139.89,139.86,4.29666386]
[1763259632783,7.14898484,139.88,139.86,4.29666386]
[1763259634163,7.8585976,139.89,139.86,4.29666386]
[1763259634680,25.7297821,139.89,139.86,4.29666386]
[1763259634870,7.14949596,139.87,139.86,4.29666386]
[1763259635387,25.73323586,139.87,139.85,4.29666386]
[1763259635686,0.71,139.86,139.79,22.6512]
[1763259635880,0.71,139.86,139.83,4.29666386]
[1763259637065,25.02681444,139.85,139.77,0.4]
[1763259637266,4.29666386,139.84,139.8,4.29666386]
[1763259637486,5.00666386,139.84,139.8,4.29666386]
[1763259637688,7.15051841,139.85,139.83,4.29666386]
[1763259637893,7.15051841,139.85,139.84,4.29666386]
[1763259639089,7.1484738,139.89,139.84,11.84757108]
[1763259639261,30.5096738,139.89,139.88,4.29666386]
[1763259639666,30.5096738,139.89,139.87,4.29666386]
[1763259639868,0.71,139.88,139.81,0.4]
[1763259640085,0.71,139.88,139.87,4.29666386]
[1763259640962,7.85898484,139.88,139.87,4.29666386]
[1763259643012,7.85898484,139.88,139.86,4.29666386]
[1763259646067,7.14898484,139.88,139.86,4.29666386]
[1763259646264,0.7,139.87,139.84,4.29666386]
[1763259646671,25.02144695,139.88,139.85,4.29666386]
[1763259646976,0.7,139.87,139.85,1.77037878]
[1763259647375,0.7,139.87,139.84,1.77037878]
[1763259647593,7.15000715,139.86,139.81,0.4]
[1763259647783,7.15000715,139.86,139.84,1.77037878]
[1763259647979,7.15000715,139.86,139.81,0.4]
[1763259648180,0.7,139.85,139.84,1.77037878]
[1763259648992,7.85051841,139.85,139.84,1.77037878]
[1763259649200,7.15051841,139.85,139.84,1.77037878]
[1763259650280,7.85051841,139.85,139.84,1.77037878]
[1763259653806,25.72681444,139.85,139.8,7.48151512]
[1763259653990,25.02681444,139.85,139.83,1.77037878]
[1763259654190,25.02681444,139.85,139.78,0.4]
[1763259654414,25.02681444,139.85,139.82,1.77037878]
[1763259654584,0.7,139.84,139.82,1.77037878]
[1763259654789,0.7,139.84,139.8,1.77037878]
[1763259655328,0.7,139.84,139.82,1.77037878]
[1763259655824,7.15154115,139.83,139.82,1.77037878]
[1763259656390,7.85123678,139.84,139.82,1.77037878]
[1763259656608,104.9,139.86,139.83,1.77037878]
[1763259656794,104.9,139.86,139.85,1.77037878]
[1763259656995,0.7,139.86,139.85,1.77037878]
[1763259657209,40.52534624,139.87,139.85,1.77037878]
[1763259657416,41.22534624,139.87,139.85,1.77037878]
[1763259657711,7.15016751,139.86,139.85,1.77037878]
[1763259657917,7.85016751,139.86,139.85,1.77037878]
[1763259658300,7.85016751,139.86,139.84,1.77037878]
[1763259660290,0.7,139.85,139.83,1.77037878]
[1763259660487,2.47037878,139.85,139.81,1.77037878]
[1763259660922,25.72860411,139.84,139.81,1.77037878]
[1763259661088,25.72860411,139.84,139.82,1.77037878]
[1763259661492,7.85102974,139.84,139.82,1.77037878]
[1763259662591,7.15102974,139.84,139.82,1.77037878]
[1763259662805,7.15102974,139.84,139.83,1.77037878]
[1763259663021,41.22515878,139.87,139.83,1.77037878]
[1763259663318,41.22515878,139.87,139.85,1.77037878]
[1763259663490,40.52515878,139.87,139.84,1.77037878]
[1763259663686,0.7,139.86,139.84,1.77037878]
[1763259664107,7.85000715,139.86,139.84,1.77037878]
[1763259664489,0.7,139.85,139.83,1.77037878]
[1763259664914,7.85097366,139.85,139.83,1.77037878]
[1763259667217,7.15097366,139.85,139.83,1.77037878]
[1763259667591,7.85097366,139.85,139.83,1.77037878]
[1763259668099,7.15097366,139.85,139.83,1.77037878]
[1763259668299,0.7,139.84,139.83,1.77037878]
[1763259668822,7.15097366,139.85,139.83,1.77037878]
[1763259668992,7.15097366,139.85,139.8,7.48151512]
[1763259668993,7.15154115,139.83,139.8,7.48151512]
[1763259669198,7.15154115,139.83,139.82,1.77037878]
[1763259669917,7.15154115,139.83,139.81,1.77037878]
[1763259670120,7.85154115,139.83,139.81,1.77037878]
[1763259670300,7.85154115,139.83,139.82,1.77037878]
[1763259671118,7.85051841,139.85,139.82,1.77037878]
[1763259671421,0.7,139.84,139.79,7.55353352]
[1763259671621,0.7,139.84,139.82,1.77037878]
[1763259672422,7.15154115,139.83,139.82,1.77037878]
[1763259672919,7.80154115,139.83,139.82,1.77037878]
[1763259673710,7.80154115,139.83,139.79,7.5535124]
[1763259673918,7.80154115,139.83,139.82,1.77037878]
[1763259674327,7.15154115,139.83,139.82,1.77037878]
[1763259674825,7.86111899,139.84,139.82,1.77037878]
[1763259676325,25.73869336,139.84,139.8,0.4]
[1763259676521,25.73869336,139.84,139.82,1.77037878]
[1763259676821,25.73869336,139.84,139.79,7.5535124]
[1763259677022,22.6512,139.81,139.73,0.5]
[1763259677219,0.72,139.8,139.77,1.77037878]
[1763259677424,29.80231899,139.84,139.79,1.77037878]
[1763259677609,29.80231899,139.84,139.82,1.77037878]
[1763259677813,0.72,139.83,139.8,1.77037878]
[1763259678118,1.77037878,139.81,139.77,1.77037878]
[1763259678501,0.72,139.8,139.77,1.77037878]
[1763259678705,7.15358752,139.79,139.77,1.77037878]
[1763259678904,7.87313151,139.8,139.78,1.77037878]
[1763259679202,0.72,139.79,139.78,1.77037878]
[1763259679726,0.72,139.79,139.76,1.77037878]
[1763259679898,22.6512,139.77,139.73,0.1]
[1763259680105,0.72,139.76,139.73,1.87037878]
[1763259680325,0.72,139.76,139.73,0.1]
[1763259680631,2.49037878,139.76,139.73,0.1]
[1763259680842,7.15614713,139.74,139.73,0.1]
[1763259681242,7.87614713,139.74,139.73,0.1]
[1763259682035,23.3712,139.79,139.73,4.04075756]
[1763259682204,7.87205263,139.82,139.78,1.77037878]
[1763259682404,7.15205263,139.82,139.81,1.77037878]
[1763259682846,7.15000715,139.86,139.81,1.77037878]
[1763259683074,0.72,139.85,139.82,1.77037878]
[1763259683828,7.15102974,139.84,139.82,1.77037878]
[1763259684325,25.02860411,139.84,139.81,1.77037878]
[1763259684504,25.74860411,139.84,139.81,1.77037878]
[1763259684828,0.72,139.83,139.81,4.30534]
[1763259685540,0.72,139.83,139.82,4.30534]
[1763259685724,7.15205263,139.82,139.77,7.55434898]
[1763259686022,7.15205263,139.82,139.81,4.30534]
[1763259687429,7.8717295,139.83,139.81,4.30534]
[1763259687622,7.8717295,139.83,139.82,4.30534]
[1763259689045,25.75058239,139.83,139.76,14.40831022]
[1763259689221,0.72,139.82,139.76,14.00831022]
[1763259689423,0.72,139.82,139.77,0.4]
[1763259690040,7.15256419,139.81,139.77,7.55450547]
[1763259691550,7.1521214,139.82,139.78,0.4]
[1763259691732,7.1521214,139.82,139.81,6.85326284]
[1763259691930,7.8721214,139.82,139.81,6.85326284]
[1763259693435,18.59830504,139.84,139.81,6.85326284]
[1763259693745,0.72,139.83,139.82,6.85326284]
[1763259694251,0.72,139.83,139.81,6.85326284]
[1763259695350,7.15205263,139.82,139.81,6.85326284]
[1763259695750,7.87205263,139.82,139.78,7.55402186]
[1763259695949,7.87205263,139.82,139.81,6.85326284]
[1763259696131,7.15205263,139.82,139.81,6.85326284]
[1763259696950,145.44629558,139.86,139.81,7.25326284]
[1763259697246,0.72,139.85,139.84,6.85326284]
[1763259697448,7.8708568,139.85,139.84,6.85326284]
[1763259697637,7.8708568,139.85,139.83,6.85326284]
[1763259698151,0.72,139.84,139.83,6.85326284]
[1763259698550,7.87102974,139.84,139.77,7.55458926]
[1763259698743,7.87102974,139.84,139.82,6.85326284]
[1763259699963,18.59757437,139.84,139.82,6.85326284]
[1763259700143,7.15051841,139.85,139.83,6.85326284]
[1763259700341,22.6512,139.86,139.84,6.85326284]
[1763259700649,7.14864733,139.89,139.85,6.85326284]
[1763259700851,104.2,139.91,139.88,6.85326284]
[1763259700852,7.14765171,139.91,139.88,6.85326284]
[1763259701067,7.86591967,139.94,139.9,6.85326284]
[1763259701244,7.86591967,139.94,139.93,6.85326284]
[1763259701444,0.72,139.94,139.86,0.4]
[1763259701648,0.72,139.93,139.89,6.85326284]
[1763259701833,7.1469411,139.92,139.89,6.85326284]
[1763259702165,7.1469411,139.92,139.9,6.85326284]
[1763259702370,7.14660277,139.93,139.88,0.4]
[1763259702568,7.14660277,139.93,139.92,6.85326284]
[1763259702731,17.86406797,139.95,139.92,6.85326284]
[1763259702732,18.58406797,139.95,139.92,6.85326284]
[1763259702930,0.72,139.94,139.93,6.85326284]
[1763259703742,7.86593101,139.94,139.93,6.85326284]
[1763259703953,7.86593101,139.94,139.89,0.4]
[1763259704157,0.7,139.93,139.87,7.54919181]
[1763259704372,0.7,139.93,139.91,6.85326284]
[1763259705142,0.7,139.93,139.87,7.54919181]
[1763259705143,0.7,139.93,139.92,6.85326284]
[1763259705837,7.84643035,139.93,139.92,6.85326284]
[1763259706345,25.71250624,139.93,139.86,0.4]
[1763259706545,0.7,139.92,139.9,6.85326284]
[1763259706850,0.7,139.92,139.91,6.85326284]
[1763259707448,7.8469411,139.92,139.91,6.85326284]
[1763259708056,25.71429387,139.92,139.89,6.85326284]
[1763259708256,0.7,139.91,139.89,6.85326284]
[1763259708758,0.7,139.91,139.88,6.85326284]
[1763259709358,7.14796283,139.9,139.88,6.85326284]
[1763259709859,7.84796283,139.9,139.88,6.85326284]
[1763259710168,0.7,139.89,139.84,14.40381751]
[1763259710349,0.7,139.89,139.88,6.85326284]
[1763259710966,7.84796283,139.9,139.88,6.85326284]
[1763259711163,0.7,139.89,139.88,6.85326284]
[1763259712448,7.8484738,139.89,139.88,6.85326284]
[1763259712947,0.7,139.93,139.88,7.25326284]
[1763259713163,22.6512,139.92,139.89,6.85326284]
[1763259713368,0.7,139.91,139.88,6.85326284]
[1763259713953,0.7,139.91,139.89,6.85326284]
[1763259715046,7.14796283,139.9,139.89,6.85326284]
[1763259715548,7.84796283,139.9,139.89,6.85326284]
[1763259716051,7.84796283,139.9,139.88,6.85326284]
[1763259717959,7.84796283,139.9,139.89,6.85326284]
[1763259718567,25.7178699,139.9,139.87,6.85326284]
[1763259718773,7.14765808,139.91,139.89,6.85326284]
[1763259718967,7.14765808,139.91,139.9,6.85326284]
[1763259719471,7.84765808,139.91,139.9,6.85326284]
[1763259720272,0.7,139.91,139.9,6.85326284]
[1763259720856,7.14738023,139.92,139.9,6.85326284]
[1763259721186,7.84738023,139.92,139.9,6.85326284]
[1763259721365,0.7,139.91,139.85,0.4]
[1763259721689,7.14796283,139.9,139.89,6.85326284]
[1763259722082,7.84796283,139.9,139.89,6.85326284]
[1763259722384,7.84796283,139.9,139.86,6.85326284]
[1763259722583,0.7,139.89,139.86,6.85326284]
[1763259723162,25.0178699,139.9,139.87,6.85326284]
[1763259723362,0.7,139.89,139.82,0.4]
[1763259723557,0.7,139.89,139.77,9.78882769]
[1763259723558,25.02144695,139.88,139.79,0.4]
[1763259723765,25.02144695,139.88,139.77,7.15461114]
[1763259723766,31.87470979,139.88,139.84,6.85326284]
[1763259723969,6.85326284,139.86,139.81,6.85326284]
[1763259724260,6.85326284,139.84,139.8,6.85326284]
[1763259724460,6.85326284,139.84,139.79,6.85326284]
[1763259724673,6.85326284,139.84,139.77,0.4]
[1763259724674,0.7,139.83,139.8,6.85326284]
[1763259725766,0.7,139.83,139.81,6.85326284]
[1763259725972,23.3512,139.87,139.82,6.85326284]
[1763259726277,0.7,139.86,139.84,6.85326284]
[1763259726595,22.6512,139.87,139.85,6.85326284]
[1763259726888,22.6512,139.87,139.81,0.4]
[1763259726889,0.7,139.88,139.86,2.76565419]
[1763259727075,25.7178699,139.9,139.87,2.76565419]
[1763259727277,25.7178699,139.9,139.88,2.76565419]
[1763259727482,10.48882769,139.89,139.81,0.4]
[1763259727688,10.48882769,139.89,139.86,2.76565419]
[1763259727897,7.84898484,139.88,139.86,2.76565419]
[1763259728394,0.7,139.87,139.85,2.76565419]
[1763259730069,7.14971673,139.87,139.85,2.76565419]
[1763259730273,7.84971673,139.87,139.85,2.76565419]
[1763259730571,7.84971673,139.87,139.86,2.76565419]
[1763259732204,0.7,139.87,139.86,2.76565419]
[1763259732373,7.84949596,139.87,139.86,2.76565419]
[1763259733178,7.14886643,139.89,139.86,2.76565419]
[1763259733383,0.68,139.88,139.86,2.76565419]
[1763259734082,7.14949596,139.87,139.86,2.76565419]
[1763259734280,9.91515015,139.87,139.83,2.76565419]
[1763259734598,9.91515015,139.87,139.82,2.76565419]
[1763259734599,0.69,139.86,139.82,2.76565419]
[1763259734799,0.69,139.86,139.8,3.16565419]
[1763259735004,0.69,139.86,139.83,2.76565419]
[1763259735901,0.69,139.86,139.82,2.76565419]
[1763259736103,3.45565419,139.86,139.82,2.76565419]
[1763259736315,27.79246863,139.85,139.81,2.76565419]
[1763259736494,28.48246863,139.85,139.81,2.76565419]
[1763259736689,0.69,139.84,139.8,2.76565419]
[1763259736891,2.76565419,139.83,139.79,2.76565419]
[1763259737122,2.76565419,139.83,139.78,2.76565419]
[1763259737287,0.69,139.82,139.78,2.76565419]
[1763259737688,3.45565419,139.82,139.78,2.76565419]
[1763259737888,26.10685419,139.82,139.77,2.76565419]
[1763259738082,2.76565419,139.8,139.76,2.76565419]
[1763259738309,7.15358752,139.79,139.77,2.76565419]
[1763259738501,7.84358752,139.79,139.77,2.76565419]
[1763259738904,7.84358752,139.79,139.77,6.85783172]
[1763259741592,0.69,139.78,139.76,6.85783172]
[1763259742622,7.15461114,139.77,139.76,6.85783172]
[1763259742924,7.15461114,139.77,139.75,6.85783172]
[1763259743126,0.69,139.76,139.74,6.85783172]
[1763259744220,7.15461114,139.77,139.75,6.85783172]
[1763259744442,7.84461114,139.77,139.76,6.85783172]
[1763259745240,25.041139,139.77,139.74,6.85783172]
[1763259745600,0.69,139.76,139.74,6.85783172]
[1763259746320,0.69,139.76,139.73,6.95783172]
[1763259747026,7.15563506,139.75,139.73,6.95783172]
[1763259747820,7.84563506,139.75,139.74,6.85783172]
[1763259748840,7.84563506,139.75,139.74,4.31018415]
[1763259750229,7.15563506,139.75,139.74,4.31018415]
[1763259750720,9.78882769,139.74,139.73,0.1]
[1763259750924,10.47882769,139.74,139.73,0.1]
[1763259751125,44.59635897,139.74,139.73,0.1]
[1763259751440,22.6512,139.72,139.71,0.1]
[1763259751647,26.96138415,139.72,139.71,0.1]
[1763259751956,27.65138415,139.72,139.71,0.1]
[1763259752335,23.3412,139.72,139.71,0.1]
[1763259752842,33.13002769,139.72,139.71,0.1]
[1763259753210,40.28719917,139.72,139.71,0.1]
[1763259762955,9.78882769,139.72,139.71,2.27458583]
[1763259763129,104.89,139.76,139.71,2.27458583]
[1763259763130,17.63446275,139.75,139.71,2.27458583]
[1763259763329,32.44002769,139.74,139.73,1.77458583]
[1763259763629,33.15002769,139.74,139.73,1.77458583]
[1763259764354,33.15002769,139.74,139.72,1.77458583]
[1763259765256,7.15665927,139.73,139.72,1.77458583]
[1763259765452,7.86665927,139.73,139.72,1.77458583]
[1763259765646,7.86665927,139.73,139.71,1.87458583]
[1763259767059,10.49882769,139.72,139.71,0.1]
[1763259767356,16.94599917,139.72,139.71,1.87458583]
[1763259768254,17.65599917,139.72,139.71,1.87458583]
[1763259768769,17.65599917,139.72,139.71,0.1]
[1763259773358,7.15717148,139.72,139.71,1.87458583]
[1763259777047,7.0855972,139.72,139.71,1.87458583]
[1763259778286,7.15686535,139.73,139.71,2.27458583]
[1763259778493,7.15686535,139.73,139.72,1.77458583]
[1763259778996,7.15686535,139.73,139.71,0.1]
[1763259779168,7.15686535,139.73,139.72,1.77458583]
[1763259780569,7.86686535,139.73,139.71,1.87458583]
[1763259780758,7.15686535,139.73,139.72,1.77458583]
[1763259781462,29.80636052,139.76,139.72,3.94917166]
[1763259781668,29.80636052,139.76,139.75,1.77458583]
[1763259781863,9.78882769,139.78,139.75,1.77458583]